Workbook

Sheet Лист2
A1: =[1]Лист1!$A$1 -> МАОУ "МАОУ "Лицей№121" | D1: =[1]Лист1!$D$1 -> Отд./корп | E1: =[1]Лист1!$E$1 -> А.Камалеева,22, Космонавтов,19 | H1: =[1]Лист1!$H$1 -> День | I1: 2023-09-18
A2: =[1]Лист1!A2 -> Раздел | B2: =[1]Лист1!B2 -> № рец. | C2: =[1]Лист1!C2 -> Блюдо | D2: =[1]Лист1!D2 -> Выход, г | E2: =[1]Лист1!E2 -> Цена | F2: =[1]Лист1!F2 -> Калорийность | G2: =[1]Лист1!G2 -> Белки | H2: =[1]Лист1!H2 -> Жиры | I2: =[1]Лист1!I2 -> Углеводы
A3: ='[2]4-9, 18-23 сент.'!B4 -> гор.блюдо | B3: ='[2]4-9, 18-23 сент.'!C4 -> ТТК 2020 | C3: ='[2]4-9, 18-23 сент.'!D4 -> Ежики с мясом и рисом в соусе томатном | D3: ='[2]4-9, 18-23 сент.'!E4 -> 100 | F3: ='[2]4-9, 18-23 сент.'!G4 -> 75 | G3: ='[2]4-9, 18-23 сент.'!H4 -> 4.6 | H3: ='[2]4-9, 18-23 сент.'!I4 -> 4 | I3: ='[2]4-9, 18-23 сент.'!J4 -> 5.23
A4: ='[2]4-9, 18-23 сент.'!B5 -> гор.блюдо | B4: ='[2]4-9, 18-23 сент.'!C5 -> №202/2015 г | C4: ='[2]4-9, 18-23 сент.'!D5 -> Макаронные изделия отварные | D4: ='[2]4-9, 18-23 сент.'!E5 -> 150 | F4: ='[2]4-9, 18-23 сент.'!G5 -> 207 | G4: ='[2]4-9, 18-23 сент.'!H5 -> 5.64 | H4: ='[2]4-9, 18-23 сент.'!I5 -> 4.46 | I4: ='[2]4-9, 18-23 сент.'!J5 -> 35.94
A5: ='[2]4-9, 18-23 сент.'!B6 -> гор.напиток | B5: ='[2]4-9, 18-23 сент.'!C6 -> №348/2015 | C5: ='[2]4-9, 18-23 сент.'!D6 -> Компот из плодов или ягод сушеных (урюк) | D5: ='[2]4-9, 18-23 сент.'!E6 -> 180 | F5: ='[2]4-9, 18-23 сент.'!G6 -> 51 | G5: ='[2]4-9, 18-23 сент.'!H6 -> 0.39 | H5: ='[2]4-9, 18-23 сент.'!I6 -> 0.04 | I5: ='[2]4-9, 18-23 сент.'!J6 -> 11.98
A6: ='[2]4-9, 18-23 сент.'!B7 -> закуска | B6: ='[2]4-9, 18-23 сент.'!C7 -> ТТК 2023 г | C6: ='[2]4-9, 18-23 сент.'!D7 -> Салат-бар (Морковь свежая порциями, капуста белокач., сыр, сухари, масло раст.) | D6: ='[2]4-9, 18-23 сент.'!E7 -> 60 | F6: ='[2]4-9, 18-23 сент.'!G7 -> 122 | G6: ='[2]4-9, 18-23 сент.'!H7 -> 3.91 | H6: ='[2]4-9, 18-23 сент.'!I7 -> 8.74 | I6: ='[2]4-9, 18-23 сент.'!J7 -> 6.6
A7: ='[2]4-9, 18-23 сент.'!B8 -> хлеб | B7: ='[2]4-9, 18-23 сент.'!C8 -> ТТК | C7: ='[2]4-9, 18-23 сент.'!D8 -> Хлебная корзина (хлеб пш., хлеб рж.-пш.) | D7: ='[2]4-9, 18-23 сент.'!E8 -> 40 | F7: ='[2]4-9, 18-23 сент.'!G8 -> 91 | G7: ='[2]4-9, 18-23 сент.'!H8 -> 2.52 | H7: ='[2]4-9, 18-23 сент.'!I8 -> 0.36 | I7: ='[2]4-9, 18-23 сент.'!J8 -> 18.84
A8: ='[2]4-9, 18-23 сент.'!B9 -> печенье | B8: ='[2]4-9, 18-23 сент.'!C9 -> АКТ 2021 г | C8: ='[2]4-9, 18-23 сент.'!D9 -> Печенье сдобное Вкусное | D8: ='[2]4-9, 18-23 сент.'!E9 -> 30 | F8: ='[2]4-9, 18-23 сент.'!G9 -> 47 | G8: ='[2]4-9, 18-23 сент.'!H9 -> 2.1 | H8: ='[2]4-9, 18-23 сент.'!I9 -> 2.1 | I8: ='[2]4-9, 18-23 сент.'!J9 -> 5.1
A9: Итого | D9: ='[2]4-9, 18-23 сент.'!E10 -> 560 | F9: ='[2]4-9, 18-23 сент.'!G10 -> 593 | G9: ='[2]4-9, 18-23 сент.'!H10 -> 19.16 | H9: ='[2]4-9, 18-23 сент.'!I10 -> 19.7 | I9: ='[2]4-9, 18-23 сент.'!J10 -> 83.69
